[Event "DVM U10 2024"]
[Site "Duesseldorf"]
[Date "2024.12.27"]
[Round "1"]
[White "Naveen, Yuvaan"]
[Black "Artarov, Rina"]
[Result "0-1"]
[ECO "D00"]
[WhiteElo "1110"]
[BlackElo "1122"]
[Annotator "NA RC"]
[PlyCount "166"]
[EventDate "2024.12.23"]
[EventType "team-tourn"]
[EventRounds "7"]
[EventCountry "GER"]
[SourceTitle "playchess.com"]
[Source "ChessBase"]
[SourceQuality "1"]
[TimeControl "3300+5"]

1. d4 {[%emt 0:00:02]} Nf6 {[%emt 0:00:09]} 2. Bf4 {[%emt 0:00:06]} d5 {[%emt 0:00:19]} 3. e3 {[%emt 0:00:07]} c5 {[%emt 0:00:07]} 4. c3 {[%emt 0:00:07]} Qb6 {[%emt 0:00:24]} 5. Qb3 {[%emt 0:00:14]} Bf5 {[%emt 0:00:40]} 6. Nd2 {[%emt 0:00:31]} e6 {[%emt 0:00:29]} 7. Qxb6 {[%emt 0:00:16]} axb6 {[%emt 0:00:11]} 8. Bxb8 {[%emt 0:00:13]} Rxb8 {[%emt 0:00:12]} 9. Bb5+ {[%emt 0:00:17]} Nd7 {[%emt 0:00:25]} 10. Ngf3 {[%emt 0:00:14]} Be7 {[%emt 0:00:10]} 11. Ne5 {[%emt 0:00:23]} Rd8 {[%emt 0:00:15]} 12. Nxd7 {[%emt 0:00:19]} Rxd7 {[%emt 0:00:36]} 13. Bxd7+ {[%emt 0:00:11]} Kxd7 {[%emt 0:00:06]} 14. Nf3 {[%emt 0:00:12]} Rc8 {[%emt 0:02:28]} 15. Ne5+ {[%emt 0:00:15]} Ke8 {[%emt 0:00:25]} 16. f4 {[%emt 0:00:26]} g5 {[%emt 0:03:39]} 17. g3 {[%emt 0:01:31]} gxf4 {[%emt 0:01:36]} 18. exf4 {[%emt 0:00:19]} Be4 {[%emt 0:01:01]} 19. Rf1 {[%emt 0:00:12]} cxd4 {[%emt 0:00:58]} 20. cxd4 {[%emt 0:00:21]} f6 {[%emt 0:04:32]} 21. Nf3 {[%emt 0:00:17]} Rc2 {[%emt 0:00:49]} 22. Rf2 {[%emt 0:00:22]} Bb4+ {[%emt 0:01:00]} 23. Kf1 {[%emt 0:00:50]} Rc4 {[%emt 0:06:03]} 24. a3 {[%emt 0:00:42]} Bd6 {[%emt 0:01:06]} 25. Nd2 {[%emt 0:00:30]} Bd3+ {[%emt 0:01:54]} 26. Kg1 {[%emt 0:00:09]} Rxd4 {[%emt 0:00:08]} 27. Nf3 {[%emt 0:00:43]} Ra4 {[%emt 0:01:50]} 28. Kg2 {[%emt 0:00:35]} Be4 {[%emt 0:01:36]} 29. b4 {[%emt 0:00:29]} Bxb4 {[%emt 0:00:32]} 30. Rfa2 {[%emt 0:00:26]} Bc3 {[%emt 0:01:12]} 31. Rc1 {[%emt 0:00:26]} d4 {[%emt 0:00:24]} 32. Kf2 {[%emt 0:00:37]} Bd5 {[%emt 0:00:19]} 33. Re2 {[%emt 0:01:05]} Rxa3 {[%emt 0:00:32]} 34. Rd1 {[%emt 0:03:21]} Bb3 {[%emt 0:01:33]} 35. Rb1 {[%emt 0:00:31]} d3 {[%emt 0:01:15]} 36. Re3 {[%emt 0:00:49]} Bc2 {[%emt 0:03:21]} 37. Rc1 {[%emt 0:00:54]} d2 {[%emt 0:00:19]} 38. Nxd2 {[%emt 0:00:15]} Bd4 {[%emt 0:01:20]} 39. Nc4 {[%emt 0:01:11]} Rc3 {[%emt 0:00:44]} 40. Nd6+ {[%emt 0:00:34]} Ke7 {[%emt 0:00:13]} 41. Nf5+ {[%emt 0:00:12]} Bxf5 {[%emt 0:00:41]} 42. Rcxc3 {[%emt 0:00:14]} Bxe3+ {[%emt 0:01:07]} 43. Kxe3 {[%emt 0:00:09]} Kd6 {[%emt 0:00:22]} 44. Kd4 {[%emt 0:00:26]} h6 {[%emt 0:00:37]} 45. Kc4 {[%emt 0:00:20]} e5 {[%emt 0:01:14]} 46. fxe5+ {[%emt 0:00:10]} fxe5 {[%emt 0:00:15]} 47. Kb5 {[%emt 0:00:05]} e4 {[%emt 0:01:00]} 48. Kxb6 {[%emt 0:00:17]} Ke5 {[%emt 0:00:43]} 49. Rc5+ {[%emt 0:00:09]} Kf6 {[%emt 0:00:12]} 50. Rc3 {[%emt 0:01:02]} Kg5 {[%emt 0:00:23]} 51. Re3 {[%emt 0:00:22]} Kg4 {[%emt 0:00:05]} 52. Kxb7 {[%emt 0:00:05]} Kh3 {[%emt 0:00:13]} 53. Re2 {[%emt 0:00:33]} Bg4 {[%emt 0:00:05]} 54. Re3 {[%emt 0:00:05]} Kxh2 {[%emt 0:00:05]} 55. Kc6 {[%emt 0:00:05]} Bf3 {[%emt 0:00:05]} 56. Kd5 {[%emt 0:00:05]} Kxg3 {[%emt 0:00:05]} 57. Ke5 {[%emt 0:00:05]} h5 {[%emt 0:00:05]} 58. Re1 {[%emt 0:00:05]} h4 {[%emt 0:01:16]} 59. Rg1+ {[%emt 0:03:21]} Kf2 {[%emt 0:00:08]} 60. Rg8 {[%emt 0:00:10]} Bg2 {[%emt 0:00:29]} 61. Rxg2+ {[%emt 0:01:04]} Kxg2 {[%emt 0:00:04]} 62. Kxe4 {[%emt 0:00:11]} h3 {[%emt 0:00:14]} 63. Kd4 {[%emt 0:00:05]} h2 {[%emt 0:00:05]} 64. Kd5 {[%emt 0:00:05]} h1=Q {[%emt 0:00:05]} 65. Kd4 {[%emt 0:00:05]} Qe1 {[%emt 0:00:05]} 66. Kd3 {[%emt 0:00:05]} Qf2 {[%emt 0:00:05]} 67. Ke4 {[%emt 0:00:05]} Qg3 {[%emt 0:00:05]} 68. Kf5 {[%emt 0:00:05]} Qh4 {[%emt 0:00:05]} 69. Ke5 {[%emt 0:00:05]} Qg4 {[%emt 0:00:05]} 70. Kf6 {[%emt 0:00:05]} Qh5 {[%emt 0:00:05]} 71. Ke6 {[%emt 0:00:05]} Qg5 {[%emt 0:00:05]} 72. Kf7 {[%emt 0:00:05]} Qh6 {[%emt 0:00:05]} 73. Ke7 {[%emt 0:00:05]} Qg6 {[%emt 0:00:05]} 74. Kf8 {[%emt 0:00:05]} Qh7 {[%emt 0:00:05]} 75. Ke8 {[%emt 0:00:05]} Qg7 {[%emt 0:00:05]} 76. Kd8 {[%emt 0:00:05]} Qf7 {[%emt 0:00:05]} 77. Kc8 {[%emt 0:00:05]} Qe7 {[%emt 0:00:05]} 78. Kb8 {[%emt 0:00:05]} Qd7 {[%emt 0:00:05]} 79. Ka8 {[%emt 0:00:05]} Kf3 {[%emt 0:00:05]} 80. Kb8 {[%emt 0:00:05]} Ke4 {[%emt 0:00:05]} 81. Ka8 {[%emt 0:00:05]} Kd5 {[%emt 0:00:05]} 82. Kb8 {[%emt 0:00:05]} Kc6 {[%emt 0:00:05]} 83. Ka8 {[%emt 0:00:05]} Qb7# {[%emt 0:00:05]} 0-1

[Event "DVM U10 2024"]
[Site "Duesseldorf"]
[Date "2024.12.27"]
[Round "1"]
[White "Tschötsch, Hugo"]
[Black "Möller, Lia Sofie"]
[Result "1-0"]
[ECO "D25"]
[WhiteElo "1110"]
[BlackElo "829"]
[Annotator "NA RC"]
[PlyCount "33"]
[EventDate "2024.12.23"]
[EventType "team-tourn"]
[EventRounds "7"]
[EventCountry "GER"]
[SourceTitle "playchess.com"]
[Source "ChessBase"]
[SourceQuality "1"]
[TimeControl "3300+5"]

1. d4 {[%emt 0:00:01]} d5 {[%emt 0:00:15]} 2. c4 {[%emt 0:00:07]} dxc4 {[%emt 0:00:15]} 3. e3 {[%emt 0:00:04]} Nf6 {[%emt 0:00:34]} 4. Bxc4 {[%emt 0:00:15]} Bf5 {[%emt 0:00:38]} 5. Nf3 {[%emt 0:01:44]} e6 {[%emt 0:00:32]} 6. O-O {[%emt 0:01:15]} Bd6 {[%emt 0:00:21]} 7. Nc3 {[%emt 0:01:02]} Nc6 {[%emt 0:00:21]} 8. Re1 {[%emt 0:00:18]} h6 {[%emt 0:00:40]} 9. e4 {[%emt 0:01:25]} Bh7 {[%emt 0:01:58]} 10. e5 {[%emt 0:00:26]} Be7 {[%emt 0:00:50]} 11. exf6 {[%emt 0:00:36]} Bxf6 {[%emt 0:00:12]} 12. Bb5 {[%emt 0:01:58]} a6 {[%emt 0:00:40]} 13. Bxc6+ {[%emt 0:00:13]} bxc6 {[%emt 0:00:15]} 14. d5 {[%emt 0:02:21]} Qd6 {[%emt 0:00:36]} 15. dxe6 {[%emt 0:00:23]} Qc5 {[%emt 0:01:56]} 16. Qd7+ {[%emt 0:00:38]} Kf8 {[%emt 0:00:02]} 17. Qxf7# {[%emt 0:00:46]} 1-0

[Event "DVM U10 2024"]
[Site "Duesseldorf"]
[Date "2024.12.27"]
[Round "1"]
[White "Kirchgessner, Thomas"]
[Black "Glavev, Victor"]
[Result "1-0"]
[ECO "C50"]
[WhiteElo "1094"]
[BlackElo "1443"]
[Annotator "NA RC"]
[PlyCount "81"]
[EventDate "2024.12.23"]
[EventType "team-tourn"]
[EventRounds "7"]
[EventCountry "GER"]
[SourceTitle "playchess.com"]
[Source "ChessBase"]
[SourceQuality "1"]
[TimeControl "3300+5"]

1. e4 {[%emt 0:00:05]} e5 {[%emt 0:00:02]} 2. Nf3 {[%emt 0:00:07]} Nc6 {[%emt 0:00:03]} 3. Bc4 {[%emt 0:00:12]} Bc5 {[%emt 0:00:04]} 4. Nc3 {[%emt 0:00:16]} Nf6 {[%emt 0:00:05]} 5. d3 {[%emt 0:00:15]} h6 {[%emt 0:00:08]} 6. Be3 {[%emt 0:00:12]} Bb6 {[%emt 0:00:05]} 7. d4 {[%emt 0:00:39]} Ng4 {[%emt 0:13:34]} 8. h3 {[%emt 0:00:55]} Nxe3 {[%emt 0:01:32]} 9. fxe3 {[%emt 0:00:50]} d6 {[%emt 0:01:30]} 10. Bb5 {[%emt 0:01:21]} a6 {[%emt 0:01:51]} 11. Ba4 {[%emt 0:00:09]} O-O {[%emt 0:00:04]} 12. O-O {[%emt 0:00:26]} Qf6 {[%emt 0:00:40]} 13. Nxe5 {[%emt 0:00:24]} Qg5 {[%emt 0:02:57]} 14. Nxc6 {[%emt 0:01:10]} bxc6 {[%emt 0:00:15]} 15. Qf3 {[%emt 0:01:43]} Bd7 {[%emt 0:07:09]} 16. Rae1 {[%emt 0:00:37]} Rad8 {[%emt 0:04:56]} 17. Qf4 {[%emt 0:00:33]} Qg6 {[%emt 0:00:48]} 18. Rf3 {[%emt 0:07:15]} f5 {[%emt 0:05:39]} 19. Qg3 {[%emt 0:00:48]} Qxg3 {[%emt 0:00:53]} 20. Rxg3 {[%emt 0:00:14]} fxe4 {[%emt 0:00:29]} 21. Nxe4 {[%emt 0:00:13]} d5 {[%emt 0:00:43]} 22. Nc3 {[%emt 0:01:16]} Rb8 {[%emt 0:06:31]} 23. Nxd5 {[%emt 0:00:27]} Ba5 {[%emt 0:00:51]} 24. Rb1 {[%emt 0:00:20]} Kh8 {[%emt 0:00:50]} 25. b4 {[%emt 0:00:35]} cxd5 {[%emt 0:01:10]} 26. Bxd7 {[%emt 0:00:12]} Rf7 {[%emt 0:00:27]} 27. Be6 {[%emt 0:00:35]} Rf6 {[%emt 0:00:20]} 28. Bxd5 {[%emt 0:00:22]} c6 {[%emt 0:00:23]} 29. Bb3 {[%emt 0:00:18]} Bc7 {[%emt 0:00:03]} 30. Rf3 {[%emt 0:00:32]} Rxf3 {[%emt 0:01:00]} 31. gxf3 {[%emt 0:00:10]} Rxb4 {[%emt 0:00:03]} 32. Kg2 {[%emt 0:00:15]} Rb5 {[%emt 0:00:08]} 33. Rg1 {[%emt 0:00:13]} Rg5+ {[%emt 0:00:48]} 34. Kf2 {[%emt 0:00:11]} Rh5 {[%emt 0:00:07]} 35. Rh1 {[%emt 0:00:14]} Rg5 {[%emt 0:00:22]} 36. f4 {[%emt 0:00:21]} Rf5 {[%emt 0:00:25]} 37. Rg1 {[%emt 0:00:12]} g5 {[%emt 0:00:10]} 38. Rg4 {[%emt 0:00:43]} Kg7 {[%emt 0:00:22]} 39. Kg3 {[%emt 0:00:07]} Kf6 {[%emt 0:00:18]} 40. Kf3 {[%emt 0:00:31]} Bd8 {[%emt 0:00:20]} 41. Ke4 {[%emt 0:00:14]} 1-0

[Event "DVM U10 2024"]
[Site "Duesseldorf"]
[Date "2024.12.27"]
[Round "1"]
[White "Chen, Aimée"]
[Black "Bauta, Luan"]
[Result "0-1"]
[ECO "C50"]
[WhiteElo "1090"]
[BlackElo "1063"]
[Annotator "NA RC"]
[PlyCount "134"]
[EventDate "2024.12.23"]
[EventType "team-tourn"]
[EventRounds "7"]
[EventCountry "GER"]
[SourceTitle "playchess.com"]
[Source "ChessBase"]
[SourceQuality "1"]
[TimeControl "3300+5"]

1. e4 {[%emt 0:00:03]} e5 {[%emt 0:00:08]} 2. Nf3 {[%emt 0:00:06]} Nc6 {[%emt 0:00:06]} 3. Bc4 {[%emt 0:00:08]} Nf6 {[%emt 0:00:08]} 4. Nc3 {[%emt 0:00:11]} Bc5 {[%emt 0:00:32]} 5. d3 {[%emt 0:00:12]} d6 {[%emt 0:00:09]} 6. h3 {[%emt 0:00:06]} h6 {[%emt 0:00:06]} 7. O-O {[%emt 0:00:11]} O-O {[%emt 0:00:10]} 8. Be3 {[%emt 0:00:54]} Bb6 {[%emt 0:00:08]} 9. d4 {[%emt 0:01:23]} exd4 {[%emt 0:00:40]} 10. Nxd4 {[%emt 0:00:14]} Ne7 {[%emt 0:00:54]} 11. Qf3 {[%emt 0:05:01]} Ng6 {[%emt 0:00:56]} 12. Qg3 {[%emt 0:02:31]} Ne5 {[%emt 0:02:45]} 13. Be2 {[%emt 0:02:24]} Bxd4 {[%emt 0:02:20]} 14. Bxd4 {[%emt 0:01:06]} Re8 {[%emt 0:05:24]} 15. Rad1 {[%emt 0:00:34]} Be6 {[%emt 0:02:28]} 16. Bxe5 {[%emt 0:00:22]} Qe7 {[%emt 0:01:38]} 17. Bf4 {[%emt 0:00:30]} g5 {[%emt 0:01:43]} 18. Be3 {[%emt 0:00:44]} Rad8 {[%emt 0:03:18]} 19. Bxa7 {[%emt 0:01:19]} b6 {[%emt 0:00:16]} 20. Qe3 {[%emt 0:01:48]} Ra8 {[%emt 0:00:44]} 21. Bxb6 {[%emt 0:00:24]} cxb6 {[%emt 0:00:10]} 22. Qxb6 {[%emt 0:00:41]} Rad8 {[%emt 0:01:15]} 23. Qe3 {[%emt 0:03:26]} Bc8 {[%emt 0:00:58]} 24. Bb5 {[%emt 0:02:21]} Bd7 {[%emt 0:00:22]} 25. Bxd7 {[%emt 0:00:39]} Rxd7 {[%emt 0:00:09]} 26. Rfe1 {[%emt 0:00:14]} Qe6 {[%emt 0:03:31]} 27. f3 {[%emt 0:04:53]} Qe5 {[%emt 0:01:20]} 28. Nd5 {[%emt 0:01:30]} Nxd5 {[%emt 0:00:25]} 29. Rxd5 {[%emt 0:00:14]} Qxb2 {[%emt 0:01:09]} 30. Qb3 {[%emt 0:00:25]} Qf6 {[%emt 0:02:17]} 31. Rf5 {[%emt 0:00:55]} Qg6 {[%emt 0:01:14]} 32. Qc3 {[%emt 0:03:27]} d5 {[%emt 0:01:10]} 33. Qf6 {[%emt 0:00:57]} Qxf6 {[%emt 0:00:26]} 34. Rxf6 {[%emt 0:00:07]} Kg7 {[%emt 0:00:16]} 35. Rb6 {[%emt 0:00:25]} f5 {[%emt 0:00:39]} 36. e5 {[%emt 0:01:33]} h5 {[%emt 0:00:35]} 37. Kf2 {[%emt 0:00:20]} d4 {[%emt 0:01:39]} 38. e6 {[%emt 0:00:24]} Rdd8 {[%emt 0:00:44]} 39. a4 {[%emt 0:00:31]} d3 {[%emt 0:00:39]} 40. cxd3 {[%emt 0:00:09]} Rxd3 {[%emt 0:00:10]} 41. a5 {[%emt 0:00:17]} Ra3 {[%emt 0:00:12]} 42. a6 {[%emt 0:00:21]} f4 {[%emt 0:01:08]} 43. Rb7+ {[%emt 0:00:14]} Kf6 {[%emt 0:00:07]} 44. e7 {[%emt 0:01:01]} Rxa6 {[%emt 0:00:15]} 45. Rd7 {[%emt 0:01:03]} Re6 {[%emt 0:01:27]} 46. Rxe6+ {[%emt 0:02:07]} Kxe6 {[%emt 0:00:11]} 47. Rd4 {[%emt 0:01:28]} Rxe7 {[%emt 0:01:22]} 48. Re4+ {[%emt 0:00:08]} Kd6 {[%emt 0:00:09]} 49. Rxe7 {[%emt 0:00:18]} Kxe7 {[%emt 0:00:05]} 50. g3 {[%emt 0:00:07]} Kd6 {[%emt 0:00:26]} 51. gxf4 {[%emt 0:00:16]} gxf4 {[%emt 0:00:16]} 52. Ke2 {[%emt 0:00:23]} Kd5 {[%emt 0:00:29]} 53. Kd3 {[%emt 0:00:07]} h4 {[%emt 0:00:53]} 54. Ke2 {[%emt 0:00:11]} Kc4 {[%emt 0:00:21]} 55. Kf2 {[%emt 0:00:30]} Kd3 {[%emt 0:00:19]} 56. Kg2 {[%emt 0:00:22]} Ke2 {[%emt 0:00:12]} 57. Kg1 {[%emt 0:00:14]} Kxf3 {[%emt 0:00:19]} 58. Kf1 {[%emt 0:00:15]} Kg3 {[%emt 0:00:07]} 59. Kg1 {[%emt 0:00:08]} f3 {[%emt 0:01:01]} 60. Kh1 {[%emt 0:00:11]} Kxh3 {[%emt 0:00:10]} 61. Kg1 {[%emt 0:00:07]} Kg3 {[%emt 0:00:17]} 62. Kh1 {[%emt 0:01:02]} Kf2 {[%emt 0:00:15]} 63. Kh2 {[%emt 0:00:07]} Ke2 {[%emt 0:00:11]} 64. Kg1 {[%emt 0:00:21]} f2+ {[%emt 0:00:37]} 65. Kh2 {[%emt 0:00:05]} Kf3 {[%emt 0:00:54]} 66. Kh1 {[%emt 0:00:11]} f1=Q+ {[%emt 0:00:17]} 67. Kh2 {[%emt 0:00:06]} Qg2# {[%emt 0:00:43]} 0-1

[Event "DVM U10 2024"]
[Site "Duesseldorf"]
[Date "2024.12.27"]
[Round "1"]
[White "Kutschenreuter, Leo"]
[Black "Vlad, Mark"]
[Result "0-1"]
[ECO "B02"]
[WhiteElo "1085"]
[BlackElo "1439"]
[Annotator "NA RC"]
[PlyCount "70"]
[EventDate "2024.12.23"]
[EventType "team-tourn"]
[EventRounds "7"]
[EventCountry "GER"]
[SourceTitle "playchess.com"]
[Source "ChessBase"]
[SourceQuality "1"]
[TimeControl "3300+5"]

1. e4 {[%emt 0:00:02]} d5 {[%emt 0:00:07]} 2. exd5 {[%emt 0:00:24]} Nf6 {[%emt 0:00:08]} 3. Nc3 {[%emt 0:00:23]} Nxd5 {[%emt 0:00:13]} 4. Bc4 {[%emt 0:00:56]} Nxc3 {[%emt 0:00:29]} 5. bxc3 {[%emt 0:00:31]} Nc6 {[%emt 0:00:55]} 6. d4 {[%emt 0:00:38]} Bf5 {[%emt 0:01:31]} 7. Qf3 {[%emt 0:00:44]} e6 {[%emt 0:02:40]} 8. Ne2 {[%emt 0:00:44]} Bd6 {[%emt 0:01:59]} 9. O-O {[%emt 0:01:24]} h6 {[%emt 0:02:44]} 10. Bb5 {[%emt 0:01:39]} Qd7 {[%emt 0:03:01]} 11. Re1 {[%emt 0:01:06]} O-O {[%emt 0:04:00]} 12. Nf4 {[%emt 0:01:12]} Bxc2 {[%emt 0:04:59]} 13. Qg4 {[%emt 0:05:16]} Bf5 {[%emt 0:03:37]} 14. Qg3 {[%emt 0:01:06]} Kh7 {[%emt 0:02:58]} 15. c4 {[%emt 0:01:33]} a6 {[%emt 0:03:46]} 16. Ba4 {[%emt 0:00:37]} Bb4 {[%emt 0:02:10]} 17. Nh5 {[%emt 0:00:53]} Rg8 {[%emt 0:02:18]} 18. Re2 {[%emt 0:02:32]} Qxd4 {[%emt 0:01:55]} 19. Rb1 {[%emt 0:02:04]} Bxb1 {[%emt 0:01:57]} 20. Qxc7 {[%emt 0:02:07]} Qxc4 {[%emt 0:02:12]} 21. h3 {[%emt 0:02:40]} Qxe2 {[%emt 0:03:22]} 22. Bxh6 {[%emt 0:00:44]} Qxh5 {[%emt 0:00:50]} 23. Be3 {[%emt 0:00:51]} Rad8 {[%emt 0:01:08]} 24. Qxb7 {[%emt 0:01:16]} Be4 {[%emt 0:01:29]} 25. f3 {[%emt 0:00:42]} Bd5 {[%emt 0:00:24]} 26. Bc2+ {[%emt 0:00:36]} Kh8 {[%emt 0:00:23]} 27. Qxa6 {[%emt 0:00:58]} Bxf3 {[%emt 0:00:56]} 28. gxf3 {[%emt 0:01:20]} Qxf3 {[%emt 0:00:19]} 29. Bf2 {[%emt 0:01:04]} Rd2 {[%emt 0:00:07]} 30. Qf1 {[%emt 0:02:06]} Rxc2 {[%emt 0:00:16]} 31. h4 {[%emt 0:00:18]} Qf5 {[%emt 0:00:28]} 32. a4 {[%emt 0:00:56]} Rxf2 {[%emt 0:00:07]} 33. Qd1 {[%emt 0:00:42]} Bc5 {[%emt 0:00:14]} 34. Qd3 {[%emt 0:01:24]} Qg4+ {[%emt 0:00:17]} 35. Kh1 {[%emt 0:00:20]} Qg2# {[%emt 0:00:03]} 0-1

[Event "DVM U10 2024"]
[Site "Duesseldorf"]
[Date "2024.12.27"]
[Round "1"]
[White "Luo, Milo"]
[Black "Belyakov, Konstantin"]
[Result "0-1"]
[ECO "C01"]
[WhiteElo "1083"]
[BlackElo "1251"]
[Annotator "NA RC"]
[PlyCount "36"]
[EventDate "2024.12.23"]
[EventType "team-tourn"]
[EventRounds "7"]
[EventCountry "GER"]
[SourceTitle "playchess.com"]
[Source "ChessBase"]
[SourceQuality "1"]
[TimeControl "3300+5"]

1. e4 {[%emt 0:00:04]} e6 {[%emt 0:00:01]} 2. d4 {[%emt 0:00:21]} d5 {[%emt 0:00:06]} 3. Be3 {[%emt 0:00:23]} Nf6 {[%emt 0:00:10]} 4. e5 {[%emt 0:01:02]} Nfd7 {[%emt 0:00:08]} 5. f4 {[%emt 0:01:48]} c5 {[%emt 0:00:12]} 6. c3 {[%emt 0:00:14]} Nc6 {[%emt 0:00:08]} 7. Nf3 {[%emt 0:01:19]} Qb6 {[%emt 0:00:22]} 8. Bd3 {[%emt 0:06:40]} Qxb2 {[%emt 0:02:46]} 9. Nbd2 {[%emt 0:05:00]} Qxc3 {[%emt 0:00:56]} 10. Qb3 {[%emt 0:04:16]} Qxb3 {[%emt 0:02:03]} 11. axb3 {[%emt 0:00:19]} cxd4 {[%emt 0:00:19]} 12. Nxd4 {[%emt 0:01:54]} Nxd4 {[%emt 0:00:22]} 13. Bxd4 {[%emt 0:00:23]} Bc5 {[%emt 0:00:07]} 14. Nf3 {[%emt 0:01:22]} Bxd4 {[%emt 0:00:24]} 15. Nxd4 {[%emt 0:00:17]} Nc5 {[%emt 0:00:15]} 16. Bc2 {[%emt 0:00:35]} Bd7 {[%emt 0:02:24]} 17. O-O {[%emt 0:01:50]} O-O {[%emt 0:00:55]} 18. f5 {[%emt 0:04:51]} b6 {[%emt 0:00:20]} 0-1

[Event "DVM U10 2024"]
[Site "Duesseldorf"]
[Date "2024.12.27"]
[Round "1"]
[White "Brakhane, Justus"]
[Black "Qu, Mengdi"]
[Result "1-0"]
[ECO "C01"]
[WhiteElo "1068"]
[BlackElo "1111"]
[Annotator "NA RC"]
[PlyCount "41"]
[EventDate "2024.12.23"]
[EventType "team-tourn"]
[EventRounds "7"]
[EventCountry "GER"]
[SourceTitle "playchess.com"]
[Source "ChessBase"]
[SourceQuality "1"]
[TimeControl "3300+5"]

1. e4 {[%emt 0:00:02]} e6 {[%emt 0:00:08]} 2. d4 {[%emt 0:00:08]} d5 {[%emt 0:00:06]} 3. exd5 {[%emt 0:00:04]} exd5 {[%emt 0:00:14]} 4. Bd3 {[%emt 0:00:47]} Nc6 {[%emt 0:00:28]} 5. c3 {[%emt 0:00:19]} Nf6 {[%emt 0:00:38]} 6. Bf4 {[%emt 0:00:14]} Bd6 {[%emt 0:00:22]} 7. Bxd6 {[%emt 0:00:40]} Qxd6 {[%emt 0:00:16]} 8. Nd2 {[%emt 0:00:14]} O-O {[%emt 0:00:26]} 9. Ngf3 {[%emt 0:00:12]} Bg4 {[%emt 0:00:25]} 10. O-O {[%emt 0:00:12]} Ne7 {[%emt 0:00:55]} 11. Re1 {[%emt 0:00:48]} Ng6 {[%emt 0:00:31]} 12. h3 {[%emt 0:00:44]} Bh5 {[%emt 0:01:00]} 13. g4 {[%emt 0:01:20]} Nxg4 {[%emt 0:00:08]} 14. hxg4 {[%emt 0:00:18]} Bxg4 {[%emt 0:00:13]} 15. Bf1 {[%emt 0:00:33]} Qf6 {[%emt 0:00:51]} 16. Bg2 {[%emt 0:00:25]} Nh4 {[%emt 0:00:17]} 17. Re3 {[%emt 0:00:20]} Rfe8 {[%emt 0:00:40]} 18. Qe2 {[%emt 0:01:42]} Nxf3+ {[%emt 0:01:29]} 19. Nxf3 {[%emt 0:00:20]} Bxf3 {[%emt 0:00:32]} 20. Rxe8+ {[%emt 0:00:10]} Rxe8 {[%emt 0:00:18]} 21. Qxe8# {[%emt 0:00:08]} 1-0

[Event "DVM U10 2024"]
[Site "Duesseldorf"]
[Date "2024.12.27"]
[Round "1"]
[White "Pardo Lorz, Noah"]
[Black "Cheng, Louis"]
[Result "1-0"]
[ECO "C50"]
[WhiteElo "1067"]
[BlackElo "2087"]
[Annotator "RC"]
[PlyCount "153"]
[EventDate "2024.12.23"]
[EventType "team-tourn"]
[EventRounds "7"]
[EventCountry "GER"]
[SourceTitle "playchess.com"]
[Source "ChessBase"]
[SourceQuality "1"]
[TimeControl "3300+5"]

1. e4 {[%emt 0:00:02]} e5 {[%emt 0:00:04]} 2. Nf3 {[%emt 0:00:05]} Nc6 {[%emt 0:00:08]} 3. Bc4 {[%emt 0:00:06]} Bc5 {[%emt 0:00:08]} 4. d3 {[%emt 0:00:11]} d6 {[%emt 0:00:16]} 5. Be3 {[%emt 0:00:23]} Bxe3 {[%emt 0:00:41]} 6. fxe3 {[%emt 0:00:07]} Bg4 {[%emt 0:00:20]} 7. d4 {[%emt 0:00:18]} exd4 {[%emt 0:00:34]} 8. exd4 {[%emt 0:00:12]} Nf6 {[%emt 0:00:25]} 9. h3 {[%emt 0:00:16]} Bh5 {[%emt 0:00:08]} 10. g4 {[%emt 0:00:18]} Bg6 {[%emt 0:00:11]} 11. Nc3 {[%emt 0:00:10]} Bxe4 {[%emt 0:00:18]} 12. Nxe4 {[%emt 0:00:11]} Nxe4 {[%emt 0:00:21]} 13. Ng5 {[%emt 0:00:15]} Qxg5 {[%emt 0:00:13]} 14. Qe2 {[%emt 0:00:39]} Qf4 {[%emt 0:00:39]} 15. Rf1 {[%emt 0:00:15]} Qg3+ {[%emt 0:02:07]} 16. Kd1 {[%emt 0:00:33]} O-O {[%emt 0:00:59]} 17. Qxe4 {[%emt 0:00:18]} Qxh3 {[%emt 0:00:29]} 18. Rh1 {[%emt 0:01:17]} Rfe8 {[%emt 0:03:16]} 19. Qd5 {[%emt 0:00:13]} Qxg4+ {[%emt 0:01:12]} 20. Kc1 {[%emt 0:00:51]} Re6 {[%emt 0:00:49]} 21. Qb5 {[%emt 0:00:46]} Nxd4 {[%emt 0:02:16]} 22. Qxb7 {[%emt 0:01:18]} Rae8 {[%emt 0:00:53]} 23. b3 {[%emt 0:01:13]} Qf4+ {[%emt 0:02:24]} 24. Kb2 {[%emt 0:00:32]} Qd2 {[%emt 0:01:26]} 25. Rac1 {[%emt 0:00:49]} Re3 {[%emt 0:01:54]} 26. Qxc7 {[%emt 0:01:51]} Qc3+ {[%emt 0:02:12]} 27. Kb1 {[%emt 0:00:20]} d5 {[%emt 0:00:14]} 28. Qh2 {[%emt 0:01:08]} Rh3 {[%emt 0:01:23]} 29. Qxh3 {[%emt 0:00:22]} Qxh3 {[%emt 0:04:27]} 30. Rxh3 {[%emt 0:00:10]} dxc4 {[%emt 0:00:13]} 31. bxc4 {[%emt 0:00:10]} Rb8+ {[%emt 0:01:01]} 32. Ka1 {[%emt 0:00:17]} a5 {[%emt 0:00:27]} 33. Rh2 {[%emt 0:00:28]} Nf3 {[%emt 0:00:32]} 34. Re2 {[%emt 0:00:20]} Nd4 {[%emt 0:00:22]} 35. Re4 {[%emt 0:00:28]} Nf3 {[%emt 0:01:02]} 36. Rd1 {[%emt 0:01:06]} h6 {[%emt 0:02:18]} 37. Re3 {[%emt 0:00:21]} Ng5 {[%emt 0:00:50]} 38. Rde1 {[%emt 0:00:19]} Ne6 {[%emt 0:02:07]} 39. c5 {[%emt 0:00:26]} Rc8 {[%emt 0:00:46]} 40. Kb1 {[%emt 0:00:38]} Rxc5 {[%emt 0:00:49]} 41. Rg3 {[%emt 0:00:20]} Nd4 {[%emt 0:01:53]} 42. Rh1 {[%emt 0:00:33]} Ne2 {[%emt 0:00:39]} 43. Rg4 {[%emt 0:00:52]} Nc3+ {[%emt 0:00:50]} 44. Kb2 {[%emt 0:00:20]} Nd5 {[%emt 0:01:03]} 45. Rxh6 {[%emt 0:00:20]} Rb5+ {[%emt 0:00:58]} 46. Kc1 {[%emt 0:00:11]} Nc3 {[%emt 0:00:56]} 47. a3 {[%emt 0:00:39]} Rd5 {[%emt 0:00:52]} 48. Rh3 {[%emt 0:00:25]} Rd1+ {[%emt 0:00:32]} 49. Kb2 {[%emt 0:00:14]} Ne2 {[%emt 0:00:10]} 50. Rc4 {[%emt 0:00:45]} Rd8 {[%emt 0:00:23]} 51. Rch4 {[%emt 0:00:41]} Kf8 {[%emt 0:00:44]} 52. Rh8+ {[%emt 0:00:09]} Ke7 {[%emt 0:00:09]} 53. Rxd8 {[%emt 0:00:08]} Kxd8 {[%emt 0:00:22]} 54. Rh5 {[%emt 0:00:19]} a4 {[%emt 0:00:17]} 55. Rd5+ {[%emt 0:00:15]} Kc8 {[%emt 0:00:13]} 56. Ra5 {[%emt 0:00:41]} Nd4 {[%emt 0:00:36]} 57. Rxa4 {[%emt 0:00:31]} Ne6 {[%emt 0:00:10]} 58. Ra7 {[%emt 0:00:18]} Ng5 {[%emt 0:00:07]} 59. c4 {[%emt 0:00:13]} Kb8 {[%emt 0:00:13]} 60. Re7 {[%emt 0:00:20]} Kc8 {[%emt 0:00:08]} 61. c5 {[%emt 0:00:27]} g6 {[%emt 0:00:09]} 62. a4 {[%emt 0:00:11]} f5 {[%emt 0:00:16]} 63. Rg7 {[%emt 0:00:19]} Ne4 {[%emt 0:00:13]} 64. Rxg6 {[%emt 0:00:12]} Nxc5 {[%emt 0:00:10]} 65. Rc6+ {[%emt 0:00:12]} Kb7 {[%emt 0:00:13]} 66. Rxc5 {[%emt 0:00:09]} f4 {[%emt 0:00:08]} 67. Rf5 {[%emt 0:00:07]} Kb6 {[%emt 0:00:09]} 68. Rxf4 {[%emt 0:00:09]} Ka5 {[%emt 0:00:07]} 69. Rf8 {[%emt 0:00:18]} Kxa4 {[%emt 0:00:35]} 70. Rb8 {[%emt 0:00:09]} Ka5 {[%emt 0:00:25]} 71. Kc3 {[%emt 0:00:09]} Ka4 {[%emt 0:00:24]} 72. Rb1 {[%emt 0:00:11]} Ka5 {[%emt 0:00:17]} 73. Kc4 {[%emt 0:00:06]} Ka6 {[%emt 0:00:09]} 74. Kc5 {[%emt 0:00:05]} Ka7 {[%emt 0:00:11]} 75. Kc6 {[%emt 0:00:06]} Ka8 {[%emt 0:00:13]} 76. Kc7 {[%emt 0:00:07]} Ka7 {[%emt 0:00:09]} 77. Ra1# {[%emt 0:00:07]} 1-0